fUSD/lending_fUSD_20240618
["ID","MTS","AMOUNT","RATE_DAILY","PERIOD"]
[329819842,1718698476381,-1000.0,0.00029461,10]
[329819843,1718698476407,-500.0,0.00029461,10]
[329819844,1718698476431,-48109.13709177,0.00029461,20]
[329819845,1718698476456,-264.62364746,0.00029461,10]
[329819846,1718698476480,-275.0,0.00029461,14]
[329819847,1718698476503,-10000.0,0.00029461,15]
[329819848,1718698476526,-160.0,0.00029461,30]
[329819849,1718698476552,-1000.0,0.00029461,30]
[329819850,1718698476580,-2000.0,0.00029461,30]
[329819851,1718698476605,-2000.0,0.00029461,30]
[329819852,1718698476629,-2000.0,0.00029461,30]
[329819853,1718698476653,-2000.0,0.00029461,30]
[329819854,1718698476677,-2000.0,0.00029461,30]
[329819855,1718698476702,-2000.0,0.00029461,30]
[329819856,1718698476726,-1000.0,0.00029461,30]
[329819857,1718698476749,-1000.0,0.00029461,30]
[329819858,1718698476772,-1000.0,0.00029461,30]
[329819859,1718698476796,-1000.0,0.00029461,30]
[329819860,1718698476819,-1000.0,0.00029461,30]
[329819861,1718698476844,-1000.0,0.00029461,30]
[329819862,1718698476866,-1000.0,0.00029461,30]
[329819863,1718698476890,-1000.0,0.00029461,30]
[329819864,1718698476913,-1000.0,0.00029461,30]
[329819865,1718698476936,-1000.0,0.00029461,30]
[329819866,1718698476960,-190.0,0.00029461,30]
[329819867,1718698476984,-1000.0,0.00029461,30]
[329819868,1718698477008,-1000.0,0.00029461,30]
[329819869,1718698477031,-1000.0,0.00029461,30]
[329819870,1718698477060,-1000.0,0.00029461,30]
[329819871,1718698477085,-1000.0,0.00029461,30]
[329819872,1718698477110,-1000.0,0.00029461,30]
[329819873,1718698477135,-1000.0,0.00029461,30]
[329819874,1718698477160,-1000.0,0.00029461,30]
[329819875,1718698477184,-243.76487873,0.00029461,30]
[329819876,1718698477211,-482.15014459,0.00029461,30]
[329819877,1718698477235,-360.34716465,0.00029461,30]
[329819878,1718698477259,-832.87105825,0.00029461,30]
[329819879,1718698477283,-697.4400915,0.00029461,30]
[329819880,1718698477307,-815.79816296,0.00029461,30]
[329819881,1718698477333,-823.60110515,0.00029461,30]
[329819882,1718698477359,-658.55551964,0.00029461,30]
[329819883,1718698477383,-197.06633318,0.00029461,30]
[329819884,1718698477407,-916.48972673,0.00029461,30]
[329819885,1718698477431,-332.45558417,0.00029461,30]
[329819886,1718698477457,-500.0,0.00029461,30]
[329819887,1718698477482,-843.01613686,0.00029461,30]
[329819888,1718698477506,-192.69239203,0.00029461,30]
[329819889,1718698477530,-290.94605411,0.00029461,30]
[329819890,1718698477556,-1010.89820081,0.00029461,30]
[329819891,1718698477581,-252.38870956,0.00029461,30]
[329819892,1718698477607,-1091.13915148,0.00029461,30]
[329819893,1718698477633,-285.69261566,0.00029461,30]
[329819894,1718698477658,-1000.0,0.00029461,30]
[329819895,1718698477684,-1000.0,0.00029461,30]
[329819896,1718698477708,-1000.0,0.00029461,30]
[329819897,1718698477736,-1000.0,0.00029461,30]
[329819898,1718698477764,-1000.0,0.00029461,30]
[329819899,1718698477788,-1000.0,0.00029461,30]
[329819900,1718698477812,-1000.0,0.00029461,30]
[329819901,1718698477836,-1000.0,0.00029461,30]
[329819902,1718698477859,-451.70134363,0.00029461,30]
[329819903,1718698477883,-536.86727782,0.00029461,30]
[329819904,1718698477907,-212569.92749262,0.00029461,30]
[329819905,1718698477937,-461.61551656,0.00029461,30]
[329819906,1718698477962,-266.0,0.00029461,30]
[329819907,1718698477985,-190.0,0.00029461,30]
[329819908,1718698478010,-1125.5,0.00029461,20]
[329819909,1718698478034,-1588.0,0.00029461,21]
[329819910,1718698478061,-1021.39343096,0.00029461,120]
[329819911,1718698478086,-1624.97630536,0.00029461,30]
[329819912,1718698478112,-229.0,0.00029461,120]
[329819913,1718698478135,-1280.7109,0.00029461,30]
[329819914,1718698478159,-1055.93325981,0.00029461,30]
[329819915,1718698478183,-156.55273145,0.00029461,30]
[329819916,1718698478208,-635.0,0.00029461,120]
[329819917,1718698478232,-264.53199822,0.00029461,30]
[329819918,1718698478256,-248.0,0.00029461,120]
[329819919,1718698478280,-1232.92353058,0.00029461,120]
[329819920,1718698478304,-1038.0,0.00029461,10]
[329819921,1718698478567,-1038.0,0.00029461,10]
[329819922,1718698478591,-1038.0,0.00029461,10]
[329819923,1718698478630,-1038.0,0.00029461,10]
[329819924,1718698478658,-1038.0,0.00029461,10]
[329819925,1718698478683,-1038.0,0.00029461,10]
[329819926,1718698478709,-1038.0,0.00029461,10]
[329819927,1718698478735,-1038.0,0.00029461,10]
[329819928,1718698478760,-1038.0,0.00029461,10]
[329819929,1718698478786,-1038.0,0.00029461,10]
[329819930,1718698478810,-1038.0,0.00029461,10]
[329819931,1718698478836,-1038.0,0.00029461,10]
[329819932,1718698478861,-1038.0,0.00029461,10]
[329819933,1718698478886,-1038.0,0.00029461,10]
[329819934,1718698478909,-1038.0,0.00029461,10]
[329819935,1718698478934,-1038.0,0.00029461,10]
[329819936,1718698478958,-1038.0,0.00029461,10]
[329819937,1718698478982,-1038.0,0.00029461,10]
[329819938,1718698479004,-1038.0,0.00029461,10]
[329819939,1718698479032,-1038.0,0.00029461,10]
[329819940,1718698479058,-1038.0,0.00029461,10]
[329819941,1718698479082,-1038.0,0.00029461,10]
[329819942,1718698479106,-1038.0,0.00029461,10]
[329819943,1718698479130,-1038.0,0.00029461,10]
[329819944,1718698479156,-1038.0,0.00029461,10]
[329819945,1718698479180,-1038.0,0.00029461,10]
[329819946,1718698479207,-1038.0,0.00029461,10]
[329819947,1718698479232,-1038.0,0.00029461,10]
[329819948,1718698479256,-1038.0,0.00029461,10]
[329819949,1718698479280,-1038.0,0.00029461,10]
[329819950,1718698479311,-1038.0,0.00029461,10]
[329819951,1718698479338,-1038.0,0.00029461,10]
[329819952,1718698479370,-1038.0,0.00029461,10]
[329819953,1718698479397,-1113.33860211,0.00029461,10]
[329819954,1718698479423,-524.0,0.00029461,30]
[329819955,1718698479453,-40390.8156321,0.00029461,10]
[329819956,1718698479479,-260.34779637,0.00029461,120]
[329819957,1718698479516,-50000.0,0.00029461,30]
[329819958,1718698479550,-50000.0,0.00029461,31]
[329819959,1718698479586,-50000.0,0.00029461,32]
[329819960,1718698479616,-50000.0,0.00029461,33]
[329819961,1718698479643,-1000.0,0.00029461,30]
[329819962,1718698479671,-1000.0,0.00029461,30]
[329819963,1718698479696,-1000.0,0.00029461,30]
[329819964,1718698479722,-1000.0,0.00029461,30]
[329819965,1718698479748,-1000.0,0.00029461,30]
[329819966,1718698479774,-1000.0,0.00029461,30]
[329819967,1718698479799,-1000.0,0.00029461,30]
[329819968,1718698479824,-1000.0,0.00029461,30]
[329819969,1718698479851,-1000.0,0.00029461,30]
[329819970,1718698479876,-1000.0,0.00029461,30]
[329819971,1718698479903,-1000.0,0.00029461,30]
[329819972,1718698479930,-1000.0,0.00029461,30]
[329819973,1718698479956,-1000.0,0.00029461,30]
[329819974,1718698479982,-1000.0,0.00029461,30]
[329819975,1718698480008,-1000.0,0.00029461,30]
[329819976,1718698480033,-1000.0,0.00029461,30]
[329819977,1718698480058,-1000.0,0.00029461,30]
[329819978,1718698480090,-1000.0,0.00029461,30]
[329819979,1718698480116,-1000.0,0.00029461,30]
[329819980,1718698480143,-1000.0,0.00029461,30]
[329819981,1718698480168,-1000.0,0.00029461,30]
[329819982,1718698480193,-1000.0,0.00029461,30]
[329819983,1718698480220,-1000.0,0.00029461,30]
[329819984,1718698480247,-1000.0,0.00029461,30]
[329819985,1718698480274,-1467.136707,0.00029461,30]
[329819986,1718698480299,-492.052328,0.00029461,14]
[329819987,1718698480325,-1002.399999,0.00029461,30]
[329819988,1718698488582,-884354.42580323,0.00023,120]
[329819989,1718698488631,-500.0,0.00023013,12]
[329819990,1718698488697,-500.0,0.00023287,13]
[329819991,1718698488758,-500.0,0.00023561,14]
[329819992,1718698488797,-1855.0,0.000237,11]
[329819993,1718698488841,-500.0,0.00023835,15]
[329819994,1718698488879,-1279.77795545,0.00024,15]
[329819995,1718698488923,-500.0,0.00024109,16]
[329819996,1718698488961,-1855.0,0.000242,12]
[329819997,1718698489002,-500.0,0.00024383,17]
[329819998,1718698489058,-500.0,0.00024657,18]
[329819999,1718698489097,-1855.0,0.000247,13]
[329820000,1718698489146,-500.0,0.00024931,19]
[329820001,1718698489184,-582.54441432,0.00025,14]
[329820002,1718698489209,-1235.8,0.00025,11]
[329820003,1718698489234,-1352.5,0.00025,10]
[329820004,1718698489260,-1073.19,0.000251,11]
[329820005,1718698489285,-1855.0,0.000252,13]
[329820006,1718698489328,-500.0,0.00025205,20]
[329820007,1718698489381,-500.0,0.00025479,21]
[329820008,1718698489418,-1235.6,0.000255,11]
[329820009,1718698489442,-2110.0,0.000255,15]
[329820010,1718698489467,-152.0,0.00025546,10]
[329820011,1718698489491,-1855.0,0.000257,14]
[329820012,1718698489530,-326.16470045,0.00025753,22]
[329820013,1718698489572,-1800.0,0.00026,27]
[329820014,1718698489598,-1580.0,0.00026,13]
[329820015,1718698489621,-2110.0,0.00026,15]
[329820016,1718698489651,-155.02642,0.0002602,30]
[329820017,1718698489702,-1208.0,0.00026139,30]
[329820018,1718698489728,-1855.0,0.000262,14]
[329820019,1718698489778,-834.56,0.000265,15]
[329820020,1718698489830,-152.0,0.0002666,14]
[329820021,1718698490103,-1855.0,0.000267,15]
[329820022,1718698490128,-20154.22,0.0002678,10]
[329820023,1718698490150,-110770.34,0.0002681,10]
[329820024,1718698490176,-165.061811,0.00026847,28]
[329820025,1718698490223,-5060.46989472,0.000269,14]
[329820026,1718698490248,-1944323.31900083,0.00027,120]
[329820027,1718698518788,-3000000.0,0.00027,120]
[329820028,1718698539006,-3000000.0,0.00027,120]
[329820029,1718698542393,-3000000.0,0.00027,120]
[329820030,1718698651186,-1208.0,0.00026139,30]
[329820031,1718698651286,-2998792.0,0.00027,120]
[329820032,1718698655182,-3000000.0,0.00027,120]
[329820033,1718698658054,-3000000.0,0.00027,120]
[329820034,1718698666431,-3000000.0,0.00027,120]
[329820035,1718698670413,-3000000.0,0.00027,120]
[329820036,1718698683877,-5000000.0,0.00027,120]
[329820037,1718698687176,-5000000.0,0.00027,120]
[329820038,1718698701302,-5000000.0,0.00027,120]
[329820039,1718698770013,-8000000.0,0.00027,120]
[329820044,1718698807975,-5000000.0,0.00027,120]
[329820046,1718698857750,-5000000.0,0.00027,120]
[329820047,1718698860898,-5000000.0,0.00027,120]
[329820048,1718698863591,-5000000.0,0.00027,120]
[329820049,1718698865922,-5000000.0,0.00027,120]
[329820050,1718698873950,-5000000.0,0.00027,120]
[329820051,1718698881446,-5000000.0,0.00027,120]
[329820052,1718698950219,-5000000.0,0.00027,120]
[329820053,1718698955197,-5000000.0,0.00027,120]
[329820054,1718699047646,-1208.0,0.00025766,30]
[329820055,1718699047783,-7998792.0,0.00027,120]
[329820074,1718699428341,160.2761585,0.00024,30]
[329820097,1718699431876,-257.69726089,0.00010456,2]
[329820101,1718699431965,-142.30273911,0.00010456,2]
[329820102,1718699431975,-430.27712576,0.00010457,2]
[329820103,1718699431985,-1254.94845129,0.00010458,2]
[329820104,1718699431994,-943.46654364,0.00010458,2]
[329820105,1718699432004,-528.95,0.00010463,2]
[329820106,1718699432013,-177.91,0.00012334,2]
[329820107,1718699432023,-935.52,0.00012357,2]
[329820108,1718699432032,-250.0,0.00012372,2]
[329820109,1718699432042,-1706.91,0.00012402,2]
[329820110,1718699432051,-169.78,0.00012422,2]
[329820111,1718699432061,-242.22,0.00012422,2]
[329820112,1718699432071,-172.76,0.00012514,2]
[329820113,1718699432082,-2451.28,0.00012568,2]
[329820114,1718699432091,-528.95,0.00012727,2]
[329820115,1718699432100,-152.52,0.00012891,2]
[329820116,1718699432110,-152.52,0.00012899,2]
[329820117,1718699432120,-2541.73,0.00012899,2]
[329820118,1718699432129,-152.52,0.00012906,2]
[329820119,1718699432138,-152.52,0.00012913,2]
[329820120,1718699432148,-152.52,0.0001292,2]
[329820121,1718699432158,-152.52,0.00012927,2]
[329820122,1718699432167,-152.52,0.00012934,2]
[329820124,1718699432176,-152.52,0.00012941,2]
[329820126,1718699432186,-152.52,0.00012949,2]
[329820128,1718699432195,-152.52,0.00012956,2]
[329820130,1718699432206,-191.56,0.00013065,2]
[329820132,1718699432216,-172.76,0.00013166,2]
[329820134,1718699432225,-4918.87391119,0.00013297,2]
[329820136,1718699432235,-4452.01434432,0.00013299,2]
[329820138,1718699432244,-499.99,0.00013299,2]
[329820140,1718699432255,-342.20107187,0.000133,2]
[329820142,1718699432265,-155.14,0.00013699,2]
[329820144,1718699432274,-357.72,0.00013699,2]
[329820146,1718699432284,-167.7379,0.00013898,2]
[329820149,1718699432293,-6396.72893153,0.00013899,2]
[329820150,1718699432302,-167.74926911,0.000139,2]
[329820152,1718699432312,-157.60710863,0.000139,2]
[329820154,1718699432321,-15141.99809981,0.000139,2]
[329820156,1718699432332,-352.6212,0.000139,2]
[329820158,1718699432342,-182.91176988,0.000139,2]
[329820160,1718699432350,-168.81100199,0.000139,2]
[329820162,1718699432360,-11511.40156207,0.000139,2]
[329820164,1718699432369,-935.52,0.00013901,2]
[329820166,1718699432378,-756.54200709,0.0001399,2]
[329820168,1718699432387,-756.54200709,0.0001399,2]
[329820169,1718699432397,-461.64,0.0001399,3]
[329820170,1718699432406,-189.42904866,0.00013997,2]
[329820171,1718699432415,-155.0,0.00013998,2]
[329820172,1718699432424,-2339.1107069,0.00013998,2]
[329820173,1718699432434,-2903.00547874,0.00013998,2]
[329820174,1718699432444,-525.92177641,0.00013998,2]
[329820175,1718699432453,-836.73680796,0.00013998,2]
[329820176,1718699432463,-307.61646073,0.00013998,2]
[329820177,1718699432472,-447.64379879,0.00013998,2]
[329820178,1718699432482,-1465.51183518,0.00013998,2]
[329820179,1718699432491,-193.1336079,0.00013998,2]
[329820180,1718699432501,-157.7900643,0.00013998,2]
[329820181,1718699432510,-2611.39152184,0.00013998,2]
[329820182,1718699432519,-490.61954782,0.00013998,2]
[329820183,1718699432528,-546.12541869,0.00013998,2]
[329820184,1718699432538,-195.83334803,0.00013998,2]
[329820185,1718699432547,-164.37282357,0.00013998,2]
[329820186,1718699432557,-626.16539489,0.00013998,2]
[329820187,1718699432567,-1935.33817195,0.00013998,2]
[329820188,1718699432578,-155.47371377,0.00013998,2]
[329820189,1718699432589,-163.41552073,0.00013998,2]
[329820190,1718699432598,-2412.96763589,0.00013998,2]
[329820191,1718699432608,-155.08275231,0.00013998,2]
[329820192,1718699432617,-1392.89650102,0.00013998,2]
[329820193,1718699432626,-558.47859717,0.00013998,2]
[329820194,1718699432635,-155.0,0.00013998,2]
[329820195,1718699432644,-786.1308027,0.00013998,2]
[329820196,1718699432654,-241.29624149,0.00013998,2]
[329820197,1718699432663,-155.0,0.00013998,2]
[329820198,1718699432672,-2353.46210869,0.00013998,2]
[329820199,1718699432682,-155.0,0.00013998,2]
[329820200,1718699432691,-1068.73915113,0.00013998,2]
[329820201,1718699432701,-27800.52717873,0.00013998,2]
[329820202,1718699432711,-1742.50385056,0.00013998,2]
[329820203,1718699432720,-264.09296082,0.00013999,2]
[329820204,1718699432729,-251.89772737,0.00013999,2]
[329820205,1718699432739,-78984.83902652,0.00014,2]
[329820206,1718699432752,-329.14260328,0.00014,2]
[329820207,1718699432780,-8185.22430872,0.00014,2]
[329820208,1718699432791,-5530.06602368,0.00014,2]
[329820209,1718699432802,-4799.61759896,0.00014,2]
[329820210,1718699432843,-207786.79033582,0.00014,2]
[329820211,1718699432854,-70894.92444027,0.00014,2]
[329820212,1718699432867,-74757.08108191,0.00014,2]
[329820213,1718699432878,-4235.04792031,0.00014,2]
[329820214,1718699432890,-424.54627044,0.00014,2]
[329820215,1718699432902,-3481.8,0.00014,2]
[329820224,1718699437924,-179.38098978,0.000139,2]
[329820225,1718699437934,-889.51765243,0.00014,2]
[329820226,1718699437950,-2104.93626584,0.00014,2]
[329820305,1718699439980,-342.56508006,0.00014,2]
[329820306,1718699440149,-566.18888113,0.00014,2]
[329820307,1718699440244,-275.950685,0.00014,2]
[329820308,1718699440257,-693.82039865,0.00014,2]
[329820309,1718699440269,-2818.80991683,0.00014,2]
[329820310,1718699440282,-469.65529697,0.00014,2]
[329820311,1718699440295,-44513.45040144,0.00014,2]
[329820312,1718699440355,-273.03265576,0.00014,2]
[329820313,1718699440367,-5373.89872731,0.00014,2]
[329820314,1718699440379,-1737.35502401,0.00014,2]
[329820315,1718699440392,-356.69583525,0.00014,2]
[329820316,1718699440404,-412.68527043,0.00014,2]
[329820317,1718699440452,-150014.18725908,0.00014,2]
[329820318,1718699440466,-4295.78065993,0.00014,2]
[329820319,1718699440479,-808.54438165,0.00014,2]
[329820321,1718699440495,-33053.93046689,0.00014,2]
[329820335,1718699443012,-373.35760551,0.00014,2]
[329820336,1718699443025,-49434.71698263,0.00014,2]
[329820337,1718699443173,-976.920342,0.00014,2]
[329820338,1718699443185,-619.55428415,0.00014,2]
[329820339,1718699443197,-353.87,0.00014,2]
[329820340,1718699443218,-674.44,0.00014,2]
[329820341,1718699443231,-4330.59626476,0.00014,2]
[329820344,1718699443569,-1893623.71508267,0.00014,2]
[329820345,1718699443579,-35325.91002043,0.00014,2]
[329820346,1718699443589,-4606.6367,0.00014,2]
[329820347,1718699443598,-2836.08529,0.00014,2]
[329820348,1718699443608,-152.52,0.00014,2]
[329820349,1718699443617,-152.52,0.00014004,2]
[329820350,1718699443626,-152.52,0.00014008,2]
[329820351,1718699443636,-152.52,0.00014013,2]
[329820352,1718699443647,-152.52,0.00014017,2]
[329820353,1718699443657,-152.52,0.00014021,2]
[329820354,1718699443667,-152.52,0.00014025,2]
[329820355,1718699443677,-152.52,0.00014029,2]
[329820356,1718699443687,-15141.99809973,0.00014744,2]
[329820357,1718699443696,-528.95,0.0001499,2]
[329820358,1718699443706,-81317.31149213,0.00015,2]
[329820359,1718699443716,-1706.91,0.00015141,2]
[329820360,1718699443726,-935.52,0.00015446,2]
[329820361,1718699443735,-15141.99809973,0.00015587,2]
[329820362,1718699443744,-15141.99809973,0.00016431,2]
[329820363,1718699443754,-935.52,0.0001699,2]
[329820364,1718699443764,-528.95,0.00017254,2]
[329820365,1718699443774,-15141.99809973,0.00017274,2]
[329820366,1718699443784,-1706.91,0.00017881,2]
[329820367,1718699443793,-356.0,0.0001793,2]
[329820368,1718699443803,-302.0,0.0001793,2]
[329820369,1718699443813,-15141.99809973,0.00018118,2]
[329820370,1718699443822,-11511.40156206,0.00018346,2]
[329820371,1718699443834,-167.74926909,0.00018399,2]
[329820372,1718699443843,-157.60710861,0.00018403,2]
[329820373,1718699443852,-356.0,0.0001853,2]
[329820374,1718699443862,-302.0,0.0001853,2]
[329820375,1718699443873,-935.52,0.00018535,2]
[329820376,1718699443883,-15141.99809973,0.00018961,2]
[329820377,1718699443894,-2836.08529,0.00019,2]
[329820378,1718699443904,-356.0,0.0001914,2]
[329820379,1718699443917,-302.0,0.0001914,2]
[329820380,1718699443928,-163.97501436,0.00019178,2]
[329820381,1718699443938,-241.38223022,0.00019178,2]
[329820382,1718699443949,-357.72,0.00019178,2]
[329820383,1718699443958,-507.0,0.00019269,2]
[329820384,1718699444188,-528.95,0.00019518,2]
[329820385,1718699444197,-150.5,0.00019597,15]
[329820386,1718699444208,-150.5,0.00019607,15]
[329820387,1718699444217,-150.5,0.00019617,15]
[329820388,1718699444227,-579.0,0.000197,2]
[329820389,1718699444237,-356.0,0.0001975,2]
[329820390,1718699444247,-302.0,0.0001975,2]
[329820391,1718699444256,-2323.0,0.000198,2]
[329820392,1718699444265,-15141.99809973,0.00019805,2]
[329820393,1718699444275,-5900.0,0.0002,7]
[329820394,1718699444284,-192.21375615,0.0002,2]
[329820395,1718699444294,-8884.2417422,0.0002,2]
[329820396,1718699444303,-356.0,0.0002035,2]
[329820397,1718699444313,-302.0,0.0002035,2]
[329820399,1718699444323,-500.0,0.00020547,3]
[329820400,1718699444332,-15141.99809973,0.00020648,2]
[329820402,1718699444341,-1000.0,0.00020799,2]
[329820403,1718699444350,-500.0,0.00020821,4]
[329820404,1718699444360,-356.0,0.0002096,2]
[329820405,1718699444369,-302.0,0.0002096,2]
[329820406,1718699444379,-2241.0,0.00021,2]
[329820407,1718699444388,-1017.53983585,0.00021,2]
[329820408,1718699444398,-1250.0,0.00021,2]
[329820409,1718699444407,-10000.0,0.0002107,2]
[329820410,1718699444417,-500.0,0.00021095,5]
[329820411,1718699444427,-38118.0,0.00021249,2]
[329820412,1718699444436,-151.1,0.00021323,2]
[329820413,1718699444447,-375.58,0.00021323,2]
[329820414,1718699444457,-154.671,0.00021349,2]
[329820415,1718699444468,-500.0,0.00021369,6]
[329820416,1718699444478,-300.54,0.00021412,2]
[329820417,1718699444487,-150.0,0.00021412,2]
[329820418,1718699444497,-150.0,0.00021412,2]
[329820419,1718699444507,-150.0,0.00021412,2]
[329820420,1718699444517,-150.0,0.00021412,2]
[329820421,1718699444526,-150.0,0.00021412,2]
[329820422,1718699444536,-150.0,0.00021412,2]
[329820423,1718699444545,-154.9,0.00021412,2]
[329820424,1718699444555,-986.132889,0.00021474,2]
[329820425,1718699444565,-15141.99809973,0.00021492,2]
[329820426,1718699444575,-356.0,0.0002157,2]
[329820427,1718699444585,-302.0,0.0002157,2]
[329820428,1718699444600,-500.0,0.00021643,7]
[329820429,1718699444610,-224.933235,0.00021647,2]
[329820430,1718699444620,-224.933233,0.00021647,2]
[329820431,1718699444630,-195.932703,0.00021647,2]
[329820432,1718699444641,-2117.757162,0.00021647,2]
[329820433,1718699444651,-151.157726,0.00021647,2]
[329820434,1718699444660,-2020.66996463,0.00021697,3]
[329820435,1718699444671,-986.132889,0.00021742,2]
[329820436,1718699444681,-528.95,0.00021782,2]
[329820437,1718699444690,-1000.0,0.000218,2]
[329820438,1718699444701,-1136.29,0.000218,3]
[329820439,1718699444711,-1000.0,0.000218,4]
[329820440,1718699444722,-1000.0,0.000218,5]
[329820441,1718699444733,-249.76388611,0.00021914,2]
[329820442,1718699444743,-187.10002155,0.00021915,2]
[329820443,1718699444754,-155.0,0.00021915,2]
[329820444,1718699444765,-155.0,0.00021915,2]
[329820445,1718699444774,-16470.66151088,0.00021916,2]
[329820446,1718699444785,-169.94176797,0.00021916,2]
[329820447,1718699444795,-209.08499402,0.00021916,2]
[329820448,1718699444806,-3881.98949315,0.00021916,2]
[329820449,1718699444817,-500.0,0.00021917,2]
[329820450,1718699444831,-151.0,0.00021917,2]
[329820451,1718699444842,-500.0,0.00021917,2]
[329820452,1718699444854,-386.8135467,0.00021917,2]
[329820453,1718699444864,-500.0,0.00021917,2]
[329820454,1718699444875,-500.0,0.00021917,2]
[329820455,1718699444885,-500.0,0.00021917,2]
[329820456,1718699444895,-500.0,0.00021917,2]
[329820457,1718699444905,-500.0,0.00021917,2]
[329820458,1718699444917,-500.0,0.00021917,2]
[329820459,1718699444927,-500.0,0.00021917,2]
[329820460,1718699444937,-500.0,0.00021917,2]
[329820461,1718699444947,-500.0,0.00021917,2]
[329820462,1718699444956,-814.82,0.00021917,2]
[329820463,1718699444966,-500.0,0.00021917,2]
[329820464,1718699444975,-500.0,0.00021917,2]
[329820465,1718699444985,-500.0,0.00021917,2]
[329820466,1718699444995,-514.45,0.00021917,2]
[329820467,1718699445006,-500.0,0.00021917,2]
[329820468,1718699445015,-225.27304492,0.00021917,2]
[329820469,1718699445025,-156.94653221,0.00021917,2]
[329820470,1718699445035,-500.0,0.00021917,2]
[329820471,1718699445045,-500.0,0.00021917,2]
[329820472,1718699445056,-1035.58,0.00021917,2]
[329820473,1718699445066,-500.0,0.00021917,2]
[329820474,1718699445075,-500.0,0.00021917,2]
[329820475,1718699445084,-500.0,0.00021917,2]
[329820476,1718699445096,-506.5375325,0.00021917,2]
[329820477,1718699445106,-500.0,0.00021917,2]
[329820478,1718699445115,-500.0,0.00021917,2]
[329820479,1718699445125,-500.0,0.00021917,2]
[329820480,1718699445135,-500.0,0.00021917,2]
[329820481,1718699445145,-500.0,0.00021917,2]
[329820482,1718699445155,-500.0,0.00021917,2]
[329820483,1718699445165,-535.8,0.00021917,2]
[329820484,1718699445175,-500.0,0.00021917,2]
[329820485,1718699445185,-500.0,0.00021917,2]
[329820486,1718699445195,-500.0,0.00021917,2]
[329820487,1718699445206,-721.1,0.00021917,2]
[329820488,1718699445218,-500.0,0.00021917,2]
[329820489,1718699445228,-500.0,0.00021917,2]
[329820490,1718699445238,-500.0,0.00021917,2]
[329820491,1718699445249,-500.0,0.00021917,2]
[329820492,1718699445259,-577.57,0.00021917,2]
[329820493,1718699445269,-500.0,0.00021917,2]
[329820494,1718699445279,-500.0,0.00021917,2]
[329820495,1718699445288,-727.15,0.00021917,2]
[329820496,1718699445298,-500.0,0.00021917,2]
[329820497,1718699445308,-500.0,0.00021917,2]
[329820498,1718699445318,-500.0,0.00021917,2]
[329820499,1718699445328,-500.0,0.00021917,2]
[329820500,1718699445338,-533.55,0.00021917,2]
[329820501,1718699445349,-500.0,0.00021917,2]
[329820502,1718699445359,-582.41,0.00021917,2]
[329820503,1718699445369,-500.0,0.00021917,2]
[329820504,1718699445379,-500.0,0.00021917,2]
[329820505,1718699445389,-500.0,0.00021917,2]
[329820506,1718699445399,-500.0,0.00021917,2]
[329820507,1718699445409,-261.29503687,0.00021917,2]
[329820508,1718699445419,-507.53128403,0.00021917,2]
[329820509,1718699445429,-603.88,0.00021917,2]
[329820510,1718699445439,-500.0,0.00021917,2]
[329820511,1718699445448,-500.0,0.00021917,2]
[329820512,1718699445458,-500.0,0.00021917,2]
[329820513,1718699445468,-500.0,0.00021917,2]
[329820514,1718699445478,-500.0,0.00021917,2]
[329820515,1718699445488,-500.0,0.00021917,2]
[329820516,1718699445498,-500.0,0.00021917,2]